bitfinex/quotes_BTCUSD_20230110
["timestamp","ask_amount","ask_price","bid_price","bid_amount"]
[1673394504433,3.56618532,17435.0,17434.0,0.39091398]
[1673394504709,3.39540222,17435.0,17434.0,0.39091398]
[1673394505458,3.56618532,17435.0,17434.0,0.39091398]
[1673394506224,3.40182229,17435.0,17434.0,0.39091398]
[1673394506578,2.88578805,17435.0,17434.0,0.39091398]
[1673394506991,3.40183035,17435.0,17434.0,0.39091398]
[1673394507270,3.40162233,17435.0,17434.0,0.39091398]
[1673394507523,2.88578805,17435.0,17434.0,0.39091398]
[1673394508288,3.23364039,17435.0,17434.0,0.39091398]
[1673394508568,3.74944661,17435.0,17434.0,0.39091398]
[1673394509859,3.74940361,17435.0,17434.0,0.39091398]
[1673394510383,3.9198636,17435.0,17434.0,0.39091398]
[1673394510622,3.57201126,17435.0,17434.0,0.39091398]
[1673394510875,4.25753588,17435.0,17434.0,0.39091398]
[1673394512644,3.57201126,17435.0,17434.0,0.39091398]
[1673394513876,4.25714012,17435.0,17434.0,0.39091398]
[1673394515207,4.81402323,17435.0,17434.0,0.39091398]
[1673394515955,4.25714012,17435.0,17434.0,0.39091398]
[1673394516698,3.57201126,17435.0,17434.0,0.39091398]
[1673394516946,4.25704919,17435.0,17434.0,0.39091398]
[1673394518456,4.25701362,17435.0,17434.0,0.39091398]
[1673394518717,3.74123405,17435.0,17434.0,0.39091398]
[1673394519504,4.2569512,17435.0,17434.0,0.39091398]
[1673394519737,3.74123405,17435.0,17434.0,0.39091398]
[1673394519985,3.05624804,17435.0,17434.0,0.39091398]
[1673394520538,3.74120554,17435.0,17434.0,0.39091398]
[1673394521042,3.05624804,17435.0,17434.0,0.39091398]
[1673394521284,3.31385666,17435.0,17434.0,0.39091398]
[1673394521783,2.88572133,17435.0,17434.0,0.39091398]
[1673394522030,3.31385666,17435.0,17434.0,0.39091398]
[1673394522277,3.31385605,17435.0,17434.0,0.39091398]
[1673394522526,2.88571966,17435.0,17434.0,0.39091398]
[1673394527123,3.31385499,17435.0,17434.0,0.39091398]
[1673394527374,4.25746239,17435.0,17434.0,0.39091398]
[1673394527621,3.91495412,17435.0,17434.0,0.141]
[1673394528885,4.25849125,17435.0,17434.0,0.141]
[1673394529150,3.91495412,17435.0,17434.0,0.141]
[1673394529405,4.18811792,17435.0,17434.0,0.141]
[1673394530424,3.91495412,17435.0,17434.0,0.141]
[1673394530918,3.91485825,17435.0,17434.0,0.141]
[1673394531206,3.39943688,17435.0,17434.0,0.141]
[1673394532740,3.74303554,17435.0,17434.0,0.141]
[1673394536738,3.39943688,17435.0,17434.0,0.141]
[1673394537004,3.74312548,17435.0,17434.0,0.141]
[1673394537485,3.05742837,17435.0,17434.0,0.141]
[1673394537744,3.7402678,17435.0,17434.0,0.141]
[1673394538270,3.5756678,17435.0,17434.0,0.141]
[1673394540475,2.89282837,17435.0,17434.0,0.141]
[1673394540731,2.72258959,17435.0,17434.0,0.141]
[1673394541280,3.5760081,17435.0,17434.0,0.141]
[1673394541824,3.2323195,17435.0,17434.0,0.1391]
[1673394542350,4.95352082,17435.0,17434.0,0.1391]
[1673394542638,3.2323195,17435.0,17434.0,0.1391]
[1673394543459,2.80418417,17435.0,17434.0,0.1391]
[1673394544236,3.23426571,17435.0,17434.0,0.1391]
[1673394544497,2.80418417,17435.0,17434.0,0.1391]
[1673394545684,3.2342704,17435.0,17434.0,0.1391]
[1673394547888,3.23222466,17435.0,17434.0,0.1391]
[1673394548525,2.80213843,17435.0,17434.0,0.1391]
[1673394549027,3.23221631,17435.0,17434.0,0.1391]
[1673394550336,2.80213843,17435.0,17434.0,0.1391]
[1673394551135,3.23221099,17435.0,17434.0,0.1391]
[1673394554287,4.95341231,17435.0,17434.0,0.1391]
[1673394554547,3.23221099,17435.0,17434.0,0.1391]
[1673394559446,2.80213843,17435.0,17434.0,0.1391]
[1673394559958,3.23220405,17435.0,17434.0,0.1391]
[1673394560174,2.80213843,17435.0,17434.0,0.1391]
[1673394560438,3.23220457,17435.0,17434.0,0.1391]
[1673394561073,2.80213843,17435.0,17434.0,0.1391]
[1673394563139,3.23220541,17435.0,17434.0,0.1391]
[1673394563407,2.80213843,17435.0,17434.0,0.1391]
[1673394564707,3.23220562,17435.0,17434.0,0.1391]
[1673394565230,2.80213843,17435.0,17434.0,0.1391]
[1673394565491,3.23221102,17435.0,17434.0,0.1391]
[1673394565759,2.80213843,17435.0,17434.0,0.1391]
[1673394568926,3.23223596,17435.0,17434.0,0.1391]
[1673394570988,2.80213843,17435.0,17434.0,0.13899802]
[1673394572749,3.31517746,17435.0,17434.0,0.13899802]
[1673394573509,2.80213843,17435.0,17434.0,0.13899802]
[1673394574508,3.31517746,17435.0,17434.0,0.13899802]
[1673394575274,2.80213843,17435.0,17434.0,0.13899802]
[1673394581384,3.06328277,17435.0,17434.0,0.13899802]
[1673394582150,2.80213843,17435.0,17434.0,0.13899802]
[1673394583413,3.31517746,17435.0,17434.0,0.13899802]
[1673394586192,2.80213843,17435.0,17434.0,0.13899802]
[1673394586713,3.23217974,17435.0,17434.0,0.13899802]
[1673394587988,4.95338106,17435.0,17434.0,0.13899802]
[1673394588491,3.23217974,17435.0,17434.0,0.13899802]
[1673394592551,3.57619762,17435.0,17434.0,0.13899802]
[1673394595559,2.89301789,17435.0,17434.0,0.13899802]
[1673394595837,2.36170201,17435.0,17434.0,0.13899802]
[1673394596918,2.36170201,17435.0,17434.0,0.71258902]
[1673394597202,2.3617022,17435.0,17434.0,0.71258902]
[1673394597970,2.53376889,17435.0,17434.0,0.71258902]
[1673394598214,2.36168342,17435.0,17434.0,0.71258902]
[1673394601710,2.35930442,17435.0,17434.0,0.71258902]
[1673394602675,2.71855342,17435.0,17434.0,0.71258902]
[1673394603171,2.35930442,17435.0,17434.0,0.71258902]
[1673394603667,2.18722909,17435.0,17434.0,0.71258902]
[1673394603923,2.18722766,17435.0,17434.0,0.71258902]
[1673394605474,1.92927182,17435.0,17434.0,0.71258902]
[1673394605993,1.92927182,17435.0,17434.0,0.13899802]
[1673394606803,1.92927182,17435.0,17434.0,0.71258902]
[1673394607143,1.92927182,17435.0,17434.0,1.01258902]
[1673394608347,1.92927182,17435.0,17434.0,0.71258902]
[1673394612019,1.7573307,17435.0,17434.0,1.01258902]
[1673394612525,1.7573307,17435.0,17434.0,0.71258902]
[1673394613773,1.92927182,17435.0,17434.0,0.71258902]
[1673394614545,1.7573307,17435.0,17434.0,0.71258902]
[1673394614805,1.7573307,17435.0,17434.0,1.01258902]
[1673394615062,1.7573307,17435.0,17434.0,0.71258902]
[1673394615594,1.7573307,17435.0,17434.0,1.01330527]
[1673394616117,1.7573307,17435.0,17434.0,1.01258902]
[1673394616344,1.7573307,17435.0,17434.0,0.71258902]
[1673394616910,1.7573307,17435.0,17434.0,0.76561531]
[1673394618328,1.7573307,17435.0,17434.0,1.06561531]
[1673394619472,1.7573307,17435.0,17434.0,0.76561531]
[1673394621270,1.7573307,17435.0,17434.0,1.06561531]
[1673394621527,1.14728082,17435.0,17434.0,1.63920631]
[1673394624673,1.14728082,17435.0,17434.0,1.33920631]
[1673394624926,1.14728082,17435.0,17434.0,1.63920631]
[1673394626420,1.14728082,17435.0,17434.0,1.33920631]
[1673394627427,1.14728082,17435.0,17434.0,1.63920631]
[1673394635315,1.14728082,17435.0,17434.0,1.93920631]
[1673394636273,1.14728082,17435.0,17434.0,2.11057011]
[1673394641145,1.14728082,17435.0,17434.0,2.27437011]
[1673394641743,1.14728082,17435.0,17434.0,2.96318389]
[1673394641939,1.14728082,17435.0,17434.0,3.37434751]
[1673394642193,0.43279138,17437.0,17434.0,4.29139867]
[1673394642194,1.14728082,17436.0,17434.0,4.29139867]
[1673394642449,1.14719313,17436.0,17435.0,1.41291297]
[1673394642710,1.14719313,17436.0,17435.0,2.86002897]
[1673394642964,1.14719313,17436.0,17435.0,2.87805797]
[1673394643226,1.14719313,17436.0,17435.0,3.15344146]
[1673394643741,1.14819313,17436.0,17435.0,3.23744146]
[1673394645043,1.14819313,17436.0,17435.0,3.06574849]
[1673394645297,1.14819313,17436.0,17435.0,3.06646471]
[1673394645628,1.14819313,17436.0,17435.0,3.23815768]
[1673394646334,1.14819313,17436.0,17435.0,3.06646471]
[1673394648160,1.14819313,17436.0,17435.0,3.23815768]
[1673394648412,1.14819313,17436.0,17435.0,3.59740668]
[1673394648658,0.001,17436.0,17435.0,3.59740668]
[1673394651136,0.001,17436.0,17435.0,3.76200668]
[1673394653276,0.001,17436.0,17435.0,3.76129046]
[1673394653453,0.001,17436.0,17435.0,3.58959749]
[1673394654964,0.001,17436.0,17435.0,3.76129046]
[1673394656713,0.001,17436.0,17435.0,3.68446013]
[1673394656961,0.001,17436.0,17435.0,4.42568311]
[1673394657217,0.001,17436.0,17435.0,4.25436409]
[1673394657483,0.001,17436.0,17435.0,5.26236697]
[1673394657755,0.001,17436.0,17435.0,5.26236744]
[1673394658008,0.001,17436.0,17435.0,4.91931388]
[1673394658280,0.001,17436.0,17435.0,5.26236837]
[1673394658507,0.001,17436.0,17435.0,5.23898685]
[1673394659769,0.001,17436.0,17435.0,4.59730231]
[1673394660016,0.001,17436.0,17435.0,5.15154785]
[1673394661267,0.001,17436.0,17435.0,4.59730231]
[1673394661774,0.001,17436.0,17435.0,5.13940697]
[1673394662293,0.001,17436.0,17435.0,4.59730231]
[1673394663316,0.001,17436.0,17435.0,5.18009709]
[1673394663857,0.001,17436.0,17435.0,4.45044637]
[1673394664130,0.001,17436.0,17435.0,4.27896861]
[1673394666456,0.001,17436.0,17435.0,4.62190683]
[1673394666679,0.001,17436.0,17435.0,4.27896861]
[1673394666907,0.00089588,17436.0,17435.0,4.27896861]
[1673394667435,0.00089588,17436.0,17435.0,4.45044637]
[1673394668234,0.00089588,17436.0,17435.0,4.62195747]
[1673394668575,0.00089588,17436.0,17435.0,4.45044637]
[1673394669003,0.00089588,17436.0,17435.0,4.27902702]
[1673394669520,0.00089588,17436.0,17435.0,4.62196524]
[1673394669770,0.00089588,17436.0,17435.0,4.27902713]
[1673394670049,0.00089588,17436.0,17435.0,5.00824853]
[1673394670319,0.00089588,17436.0,17435.0,4.42545375]
[1673394670579,0.00089588,17436.0,17435.0,5.41587644]
[1673394670849,0.00089588,17436.0,17435.0,4.54112409]
[1673394671117,0.00089588,17436.0,17435.0,4.71952242]
[1673394671638,0.00089588,17436.0,17435.0,4.93435516]
[1673394671897,0.00089588,17436.0,17435.0,4.37652409]
[1673394672442,0.00089588,17436.0,17435.0,4.96317839]
[1673394673213,0.00089588,17436.0,17435.0,4.74835027]
[1673394673470,0.00089588,17436.0,17435.0,5.30615243]
[1673394673986,0.00089588,17436.0,17435.0,4.46157027]
[1673394674246,0.00089588,17436.0,17435.0,4.11836883]
[1673394674506,0.00089588,17436.0,17435.0,4.28981018]
[1673394674762,0.00089588,17436.0,17435.0,4.11837615]
[1673394675030,0.00089588,17436.0,17435.0,4.16411754]
[1673394676581,0.00089588,17436.0,17435.0,4.33555157]
[1673394676584,0.00089588,17436.0,17435.0,4.50712697]
[1673394677113,0.00089588,17436.0,17435.0,4.33555157]
[1673394677362,0.00089588,17436.0,17435.0,4.50711738]
[1673394677881,0.00089588,17436.0,17435.0,4.16414334]
[1673394678137,0.00089588,17436.0,17435.0,4.75711738]
[1673394678394,0.00089588,17436.0,17435.0,4.58555157]
[1673394681732,0.00089588,17436.0,17435.0,4.75731166]
[1673394682767,0.00089588,17436.0,17435.0,4.71157027]
[1673394683061,0.00089588,17436.0,17435.0,4.75731166]
[1673394684653,0.00089588,17436.0,17435.0,4.41433762]
[1673394685180,0.00089588,17436.0,17435.0,4.75760012]
[1673394686796,0.00089588,17436.0,17435.0,4.71185873]
[1673394687021,0.00089588,17436.0,17435.0,4.75760012]
[1673394688164,0.00079187,17436.0,17435.0,4.75760012]
[1673394689978,0.00079187,17436.0,17435.0,4.71185873]
[1673394693016,0.00079187,17436.0,17435.0,4.36859623]
[1673394695584,0.00079187,17436.0,17435.0,4.36918993]
[1673394695871,0.00079187,17436.0,17435.0,3.76918993]
[1673394696110,0.00079187,17436.0,17435.0,3.75368154]
[1673394696650,0.00079187,17436.0,17435.0,3.75379014]
[1673394696908,0.00079187,17436.0,17435.0,3.40994093]
[1673394697437,0.00079187,17436.0,17435.0,3.76918993]
[1673394698211,0.00079187,17436.0,17435.0,3.33956062]
[1673394701333,0.00079187,17436.0,17435.0,3.17496062]
[1673394704044,0.00079187,17436.0,17435.0,3.6470353]
[1673394705107,0.00079187,17436.0,17435.0,3.2171857]
[1673394705368,0.00079187,17436.0,17435.0,3.64705104]
[1673394707804,0.00079187,17436.0,17435.0,3.2171857]
[1673394708552,0.00079187,17436.0,17435.0,3.64704931]
[1673394708807,0.00072034,17436.0,17435.0,3.64704489]
[1673394709073,0.00072034,17436.0,17435.0,3.2171857]
[1673394710115,0.00072034,17436.0,17435.0,3.64702321]
[1673394710848,0.00072034,17436.0,17435.0,3.6470197]
[1673394715464,0.00072034,17436.0,17435.0,3.2171857]
[1673394715985,0.00072034,17436.0,17435.0,3.28787905]
[1673394716770,0.00072034,17436.0,17435.0,3.64712805]
[1673394722386,0.00072034,17436.0,17435.0,3.99108183]
[1673394722639,1.14782846,17436.0,17435.0,3.99108183]
[1673394722956,0.00072034,17436.0,17435.0,3.63183283]
[1673394723155,0.00072034,17436.0,17435.0,3.99108183]
[1673394723669,0.00072034,17436.0,17435.0,3.63183283]
[1673394723924,0.00072034,17436.0,17435.0,3.99108183]
[1673394725944,0.00072034,17436.0,17435.0,3.64712805]
[1673394729033,0.00072034,17436.0,17435.0,3.2171857]
[1673394729547,0.00072034,17436.0,17435.0,3.78835356]
[1673394729802,0.00072034,17436.0,17435.0,4.75518189]
[1673394731103,0.00072034,17436.0,17435.0,4.7550709]
[1673394731652,0.00072034,17436.0,17435.0,3.94168534]
[1673394741281,0.00072034,17436.0,17435.0,4.10628534]
[1673394742827,0.00072034,17436.0,17435.0,4.5359459]
[1673394744952,0.00072034,17436.0,17435.0,4.53583003]
[1673394745213,0.00072034,17436.0,17435.0,4.10628534]
[1673394750183,0.00072034,17436.0,17435.0,4.53583466]
[1673394750444,0.00072034,17436.0,17435.0,4.52026392]
[1673394750697,0.00072034,17436.0,17435.0,4.87951292]
[1673394751436,0.00072034,17436.0,17435.0,4.71491292]
[1673394751453,0.00072034,17436.0,17435.0,4.71490366]
[1673394751693,0.00072034,17436.0,17435.0,4.71490581]
[1673394752197,0.00072034,17436.0,17435.0,4.71491324]
[1673394752444,0.00072034,17436.0,17435.0,4.71492335]
[1673394752695,0.00072034,17436.0,17435.0,4.37123466]
[1673394753202,0.00072034,17436.0,17435.0,4.71491769]
[1673394753451,0.00061218,17436.0,17435.0,4.71491769]
[1673394754471,0.00061218,17436.0,17435.0,4.37123466]
[1673394755759,0.00061218,17436.0,17435.0,4.71502334]
[1673394756765,0.00061218,17436.0,17435.0,4.37123466]
[1673394757021,0.00061218,17436.0,17435.0,4.71502893]
[1673394757541,0.00061218,17436.0,17435.0,4.71502724]
[1673394759324,0.00061218,17436.0,17435.0,4.37123466]
[1673394762332,0.00061218,17436.0,17435.0,3.94168534]
[1673394762582,0.00061218,17436.0,17435.0,4.37142541]
[1673394762835,0.00061218,17436.0,17435.0,3.94168534]
[1673394767133,0.00061218,17436.0,17435.0,4.37152556]
[1673394771529,0.00061218,17436.0,17435.0,3.94168534]
[1673394771776,0.00061218,17436.0,17435.0,4.3715277]
[1673394772032,0.00061218,17436.0,17435.0,4.371524]
[1673394772293,0.00061218,17436.0,17435.0,3.94168534]
[1673394774574,0.00050089,17436.0,17435.0,3.94168534]
[1673394776347,0.00050089,17436.0,17435.0,4.75383365]
[1673394778197,0.00050089,17436.0,17435.0,3.94168534]
[1673394784365,0.00050089,17436.0,17435.0,4.23892232]
[1673394784612,0.00050089,17436.0,17435.0,4.75487801]
[1673394784875,0.00050089,17436.0,17435.0,4.04363308]
[1673394785123,0.00044089,17436.0,17435.0,4.60143524]
[1673394785912,0.00044089,17436.0,17435.0,4.04363308]
[1673394786170,0.00044089,17436.0,17435.0,4.74820706]
[1673394786426,0.00044089,17436.0,17435.0,5.30600922]
[1673394786708,0.00044089,17436.0,17435.0,4.74820706]
[1673394788793,0.00044089,17436.0,17435.0,4.23225137]
[1673394789054,0.00044089,17436.0,17435.0,3.93501439]
[1673394789843,0.00044089,17436.0,17435.0,4.23029408]
[1673394790094,0.00044089,17436.0,17435.0,4.23027825]
[1673394790362,0.00044089,17436.0,17435.0,4.74623394]
[1673394791425,0.00044089,17436.0,17435.0,3.93501439]
[1673394798188,0.00044089,17436.0,17435.0,4.23089618]
[1673394798470,0.00044089,17436.0,17435.0,3.93501439]
[1673394799020,0.00044089,17436.0,17435.0,3.98075578]
[1673394800258,0.00044089,17436.0,17435.0,3.93501439]
[1673394801310,0.00044089,17436.0,17435.0,4.09961439]
[1673394801564,0.00044089,17436.0,17435.0,4.91146856]
[1673394805508,0.00038089,17436.0,17435.0,4.91136717]
[1673394807078,0.00038089,17436.0,17435.0,4.95710856]
[1673394808612,0.00038089,17436.0,17435.0,4.25253458]
[1673394809118,0.00038089,17436.0,17435.0,4.8484973]
[1673394809369,0.00038089,17436.0,17435.0,4.20679319]
[1673394809871,0.00038089,17436.0,17435.0,4.87340642]
[1673394813542,0.00038089,17436.0,17435.0,4.06155225]
[1673394817086,0.00038089,17436.0,17435.0,4.10729364]
[1673394818658,0.00038089,17436.0,17435.0,4.53706619]
[1673394819162,0.00038089,17436.0,17435.0,3.8913248]
[1673394819428,0.00038089,17436.0,17435.0,3.5320758]
[1673394820409,0.00038089,17436.0,17435.0,4.23511224]
[1673394820654,0.00038089,17436.0,17435.0,3.8913248]
[1673394820922,0.00038089,17436.0,17435.0,3.5320758]
[1673394821173,0.00038089,17436.0,17435.0,3.3674758]
[1673394821432,0.00038089,17436.0,17435.0,3.7267248]
[1673394822452,0.00038089,17436.0,17435.0,4.07044856]
[1673394823496,0.00038089,17436.0,17435.0,3.7267248]
[1673394825864,0.00038089,17436.0,17435.0,4.07043821]
[1673394826098,0.00038089,17436.0,17435.0,3.96896336]
[1673394826374,0.00038089,17436.0,17435.0,3.71118921]
[1673394829104,0.00038089,17436.0,17435.0,4.07043821]
[1673394829619,0.00029795,17436.0,17435.0,4.07043821]
[1673394830664,0.00029795,17436.0,17435.0,3.7267248]
[1673394830936,0.00029795,17436.0,17435.0,4.3267248]
[1673394832414,0.00029795,17436.0,17435.0,3.89695225]
[1673394833167,0.00029795,17436.0,17435.0,4.32641759]
[1673394834233,0.00029795,17436.0,17435.0,3.89695225]
[1673394836324,0.00029795,17436.0,17435.0,4.32642916]
[1673394837596,0.00029795,17436.0,17435.0,3.89695225]
[1673394847755,0.00023795,17436.0,17435.0,3.89695225]
[1673394848613,0.00023795,17436.0,17435.0,4.71020713]
[1673394849131,0.00023795,17436.0,17435.0,4.71023179]
[1673394849719,0.00023795,17436.0,17435.0,3.89695225]
[1673394849975,0.00023795,17436.0,17435.0,4.1942849]
[1673394850232,0.00023795,17436.0,17435.0,4.71024059]
[1673394850776,0.00023795,17436.0,17435.0,4.20822736]
[1673394851031,0.00023795,17436.0,17435.0,4.77938582]
[1673394851800,0.00011458,17436.0,17435.0,4.77938582]
[1673394852332,0.00011458,17436.0,17435.0,4.20822736]
[1673394852586,0.00011458,17436.0,17435.0,3.91089471]
[1673394852852,0.00011458,17436.0,17435.0,4.20822736]
[1673394853402,0.00011458,17436.0,17435.0,3.69227167]
[1673394853658,0.00011458,17436.0,17435.0,4.20775986]
[1673394853926,0.00011458,17436.0,17435.0,4.20774382]
[1673394854217,0.00011458,17436.0,17435.0,4.20775091]
[1673394854470,0.00011458,17436.0,17435.0,4.80169858]
[1673394857068,0.00011458,17436.0,17435.0,5.42664074]
[1673394857576,0.00011458,17436.0,17435.0,4.80169858]
[1673394858595,0.00011458,17436.0,17435.0,5.47404338]
[1673394863692,0.00011458,17436.0,17435.0,4.80169858]
[1673394864200,0.00011458,17436.0,17435.0,5.47505631]
[1673394864708,0.00011458,17436.0,17435.0,4.80169858]
[1673394865233,0.00011458,17436.0,17435.0,5.50376659]
[1673394865728,0.00011458,17436.0,17435.0,4.80169858]
[1673394866521,0.00011458,17436.0,17435.0,5.47508707]
[1673394866744,0.00011458,17436.0,17435.0,4.80169858]
[1673394867246,0.00011458,17436.0,17435.0,5.39151457]
[1673394867547,0.00270811,17437.0,17436.0,0.3]
[1673394867767,0.00270811,17437.0,17436.0,2.09228932]
[1673394868028,0.00270811,17437.0,17436.0,3.74536769]
[1673394868522,0.00270811,17437.0,17436.0,3.99536769]
[1673394868794,0.00270811,17437.0,17436.0,3.47988845]
[1673394869038,0.00270811,17437.0,17436.0,3.53026518]
[1673394869298,0.01370811,17437.0,17436.0,3.53126518]
[1673394869553,0.01370811,17437.0,17436.0,3.23374454]
[1673394870155,0.01370811,17437.0,17436.0,3.80191904]
[1673394870380,0.01370811,17437.0,17436.0,4.49181856]
[1673394870631,0.00270811,17437.0,17436.0,4.49081856]
[1673394870883,0.00370811,17437.0,17436.0,4.63081856]
[1673394871143,0.00270811,17437.0,17436.0,4.49081856]
[1673394871413,0.00370811,17437.0,17436.0,4.62981856]
[1673394874049,0.00370811,17437.0,17436.0,3.81680557]
[1673394874234,0.00370811,17437.0,17436.0,3.81682557]
[1673394875013,0.00370811,17437.0,17436.0,4.11488305]
[1673394875560,0.00370811,17437.0,17436.0,3.81682557]
[1673394877406,0.00370811,17437.0,17436.0,4.63004076]
[1673394877659,0.00370811,17437.0,17436.0,4.63003076]
[1673394878161,0.00370811,17437.0,17436.0,4.11455152]
[1673394878162,0.00370811,17437.0,17436.0,4.63003076]
[1673394878425,0.00370811,17437.0,17436.0,3.98587263]
[1673394879479,0.00370811,17437.0,17436.0,4.65533792]
[1673394879743,0.00370811,17437.0,17436.0,3.98587263]
[1673394880626,0.00370811,17437.0,17436.0,4.5042804]
[1673394881331,0.00370811,17437.0,17436.0,4.6688804]
[1673394885065,0.00370811,17437.0,17436.0,4.15047263]
[1673394885605,0.00370811,17437.0,17436.0,4.70008346]
[1673394886702,0.00370811,17437.0,17436.0,4.53548346]
[1673394887707,0.0033373,17437.0,17436.0,4.53548346]
[1673394889663,0.0033373,17437.0,17436.0,3.43551827]
[1673394891194,0.0033373,17437.0,17436.0,3.56929116]
[1673394891454,0.0033373,17437.0,17436.0,3.56929217]
[1673394891979,0.0033373,17437.0,17436.0,4.08477141]
[1673394892230,0.0033373,17437.0,17436.0,3.56929217]
[1673394892494,0.0033373,17437.0,17436.0,4.08477141]
[1673394893021,0.0033373,17437.0,17436.0,3.56929217]
[1673394893355,0.0033373,17437.0,17436.0,4.08477141]
[1673394894415,0.0033373,17437.0,17436.0,3.56929217]
[1673394894668,0.0033373,17437.0,17436.0,4.08477141]
[1673394895418,0.0033373,17437.0,17436.0,3.56929217]
[1673394896027,0.0033373,17437.0,17436.0,4.08477141]
[1673394897066,0.0033373,17437.0,17436.0,3.53516058]
[1673394897372,0.0033373,17437.0,17436.0,4.20125082]
[1673394901728,0.0033373,17437.0,17436.0,4.19887682]
[1673394907743,0.00300358,17437.0,17436.0,4.19887682]
[1673394910087,0.00300358,17437.0,17436.0,4.15313543]
[1673394910344,0.00300358,17437.0,17436.0,4.19887682]
[1673394910884,0.00300358,17437.0,17436.0,3.68339758]
[1673394917613,0.00300358,17437.0,17436.0,3.01730734]
[1673394917887,0.00300358,17437.0,17436.0,3.58685269]
[1673394918137,0.00300358,17437.0,17436.0,3.5411113]
[1673394918405,0.00300358,17437.0,17436.0,2.97156595]
[1673394918661,0.00300358,17437.0,17436.0,3.61079236]
[1673394918923,0.00300358,17437.0,17436.0,4.36906808]
[1673394919450,0.00300358,17437.0,17436.0,3.61079236]
[1673394921263,0.00300358,17437.0,17436.0,3.01730734]
[1673394921525,0.00300358,17437.0,17436.0,3.70560365]
[1673394924114,0.00300358,17437.0,17436.0,3.99235365]
[1673394925197,0.00300358,17437.0,17436.0,4.00685396]
[1673394925463,0.00300358,17437.0,17436.0,3.30405734]
[1673394925770,0.00183067,17437.0,17436.0,4.06233306]
[1673394926293,0.00183067,17437.0,17436.0,4.7066907]
[1673394926550,0.00183067,17437.0,17436.0,4.06233306]
[1673394926803,0.00183067,17437.0,17436.0,3.30405734]
[1673394927360,0.008122,17440.0,17436.0,5.38737862]
[1673394927621,0.008122,17440.0,17439.0,0.80189076]
[1673394927622,0.00730981,17440.0,17439.0,0.80189076]
[1673394927877,0.00730981,17440.0,17439.0,4.15637037]
[1673394928133,0.00730981,17440.0,17439.0,3.97301387]
[1673394928368,0.00902881,17441.0,17439.0,4.22564638]
[1673394928631,0.00902881,17441.0,17440.0,1.27019832]
[1673394928891,0.00902881,17441.0,17440.0,2.41698632]
[1673394929406,0.00902881,17441.0,17440.0,3.06649639]
[1673394929897,0.00902881,17441.0,17440.0,3.31649639]
[1673394930132,0.00902881,17441.0,17440.0,3.92436736]
[1673394930391,0.00902881,17441.0,17440.0,3.48946994]
[1673394930662,0.00902881,17441.0,17440.0,3.40952987]
[1673394930953,0.00902881,17441.0,17440.0,4.07984757]
[1673394931225,0.00902881,17441.0,17440.0,3.52204541]
[1673394931748,0.00902881,17441.0,17440.0,4.07984757]
[1673394932510,0.00902881,17441.0,17440.0,3.83819519]
[1673394932770,0.00902881,17441.0,17440.0,3.7998453]
[1673394933562,0.00902881,17441.0,17440.0,4.35764746]
[1673394933815,0.00902881,17441.0,17440.0,3.7998453]
[1673394934117,0.00902881,17441.0,17440.0,3.75410391]
[1673394934880,0.00902881,17441.0,17440.0,4.31190607]
[1673394935151,0.00902881,17441.0,17440.0,3.75410391]
[1673394936928,0.00902881,17441.0,17440.0,4.09695839]
[1673394937187,0.00902881,17441.0,17440.0,3.75410391]
[1673394937442,0.00902881,17441.0,17440.0,4.09696073]
[1673394937698,0.00902881,17441.0,17440.0,3.23465164]
[1673394938248,0.00977815,17442.0,17440.0,4.79533404]
[1673394938506,0.56632416,17447.0,17441.0,2.3915436]
[1673394938797,0.56632416,17447.0,17444.0,0.62251488]
[1673394939036,0.56632416,17447.0,17445.0,1.18707789]
[1673394939290,0.56632416,17447.0,17446.0,0.359005]
[1673394939560,0.9466,17449.0,17446.0,1.68399189]
[1673394939816,0.88856418,17449.0,17447.0,0.83759789]
[1673394940092,0.88856418,17449.0,17448.0,1.719393]
[1673394940319,2.03498493,17449.0,17448.0,1.719393]
[1673394940576,1.24781318,17449.0,17448.0,2.019393]
[1673394940829,0.88856418,17449.0,17448.0,2.019393]
[1673394941359,0.88856418,17449.0,17448.0,2.25054304]
[1673394941636,1.25781318,17449.0,17448.0,2.25054304]
[1673394941906,0.88856418,17449.0,17448.0,2.25054304]
[1673394942160,0.1746,17449.0,17448.0,2.26054304]
[1673394944786,0.1746,17449.0,17448.0,1.96054304]
[1673394945045,0.83354248,17449.0,17448.0,1.96054304]
[1673394945405,1.19279148,17449.0,17448.0,1.96054304]
[1673394945676,0.83354248,17449.0,17448.0,1.96054304]
[1673394946440,1.45720573,17449.0,17448.0,1.38741204]
[1673394946707,1.45720573,17449.0,17448.0,1.406262]
[1673394946708,1.35739148,17449.0,17448.0,1.406262]
[1673394947497,2.5038651,17449.0,17448.0,1.406262]
[1673394947760,1.35739148,17449.0,17448.0,1.406262]
[1673394948505,2.50387791,17449.0,17448.0,1.406262]
[1673394949532,2.50387791,17449.0,17448.0,0.26]
[1673394949533,2.83815413,17449.0,17448.0,0.26]
[1673394949788,3.12211954,17449.0,17448.0,0.26]
[1673394950049,3.38007538,17449.0,17448.0,0.26]
[1673394950305,4.65106484,17449.0,17448.0,0.26]
[1673394950564,4.47988862,17449.0,17448.0,0.26]
[1673394951091,5.02413034,17449.0,17448.0,0.26]
[1673394951614,4.81785193,17449.0,17448.0,0.26]
[1673394952046,4.98907321,17449.0,17448.0,0.26]
[1673394952048,4.81785193,17449.0,17448.0,0.26]
[1673394952276,4.64674216,17449.0,17448.0,0.26]
[1673394952499,4.21785193,17449.0,17448.0,0.26]
[1673394952725,4.38910151,17449.0,17448.0,0.26]
[1673394952951,4.21785193,17449.0,17448.0,0.26]
[1673394953426,4.78153125,17449.0,17448.0,0.26]
[1673394955252,4.21785193,17449.0,17448.0,0.26]
[1673394958377,3.05923797,17449.0,17448.0,0.26]
[1673394958571,3.40156991,17449.0,17448.0,0.26]
[1673394958820,3.23025193,17449.0,17448.0,0.26]
[1673394959321,3.0592717,17449.0,17448.0,0.26]
[1673394959827,3.23025193,17449.0,17448.0,0.26]
[1673394960586,2.89466917,17449.0,17448.0,0.26]
[1673394961837,2.72967717,17449.0,17448.0,0.26]
[1673394962092,2.89427717,17449.0,17448.0,0.26]
[1673394962594,3.06525993,17449.0,17448.0,0.26]
[1673394963315,3.91275049,17449.0,17448.0,0.26]
[1673394963577,3.05558841,17449.0,17448.0,0.26]
[1673394964088,3.48562972,17449.0,17448.0,0.26]
[1673394964343,3.22846378,17449.0,17448.0,0.26]
[1673394964657,3.90300378,17449.0,17448.0,0.26]
[1673394966137,3.56067184,17449.0,17448.0,0.26]
[1673394969358,3.55968199,17449.0,17448.0,0.26]
[1673394970362,3.90291419,17449.0,17448.0,0.26]
[1673394970622,3.55968199,17449.0,17448.0,0.26]
[1673394971146,3.39508199,17449.0,17448.0,0.26]
[1673394973540,3.39008199,17449.0,17448.0,0.26]
[1673394974305,3.73335411,17449.0,17448.0,0.26]